bitfinex/quotes_SOLUSD_20240705
["timestamp","ask_amount","ask_price","bid_price","bid_amount"]
[1720147186606,50.12,125.7,125.59,39.8112]
[1720147186925,50.12,125.7,125.62,7.9602]
[1720147187110,58.0755,125.7,125.62,7.9602]
[1720147187292,50.12,125.7,125.59,39.8112]
[1720147187497,50.12,125.7,125.63,19.8984]
[1720147187999,7.9581,125.66,125.59,7.9618]
[1720147188198,7.9593,125.64,125.57,27.8719]
[1720147188412,7.9587,125.65,125.57,27.8715]
[1720147188718,7.9587,125.65,125.57,27.3715]
[1720147188928,50.12,125.66,125.57,27.3719]
[1720147188929,7.9594,125.64,125.57,27.3719]
[1720147189112,7.9594,125.64,125.54,1.84264219]
[1720147189113,58.0811,125.62,125.54,21.75584219]
[1720147189308,58.0811,125.62,125.54,27.8786]
[1720147189702,50.12,125.6,125.55,7.9647]
[1720147190106,50.12,125.6,125.56,7.964]
[1720147190308,100.24,125.64,125.54,19.9132]
[1720147190628,7.9599,125.63,125.55,7.9643]
[1720147190801,50.12,125.6,125.56,7.9641]
[1720147190997,7.9599,125.63,125.56,7.9641]
[1720147191202,100.24,125.64,125.57,7.9636]
[1720147191427,150.12,125.7,125.6,7.9617]
[1720147191725,7.9611,125.61,125.51,39.937]
[1720147191915,50.12,125.59,125.52,47.76]
[1720147192119,100.24,125.64,125.52,47.76]
[1720147192306,100.24,125.64,125.54,19.9126]
[1720147192511,50.12,125.6,125.56,7.9642]
[1720147192710,100.24,125.64,125.54,67.6726]
[1720147192900,50.12,125.64,125.59,7.9623]
[1720147193300,50.12,125.64,125.57,19.9086]
[1720147193636,50.12,125.64,125.59,7.9623]
[1720147193802,50.12,125.64,125.58,7.9627]
[1720147194403,50.12,125.64,125.57,67.6686]
[1720147194612,50.12,125.64,125.61,7.961]
[1720147194805,50.12,125.64,125.6,7.9616]
[1720147195004,1.83465558,125.69,125.61,19.9017]
[1720147195314,50.12,125.66,125.61,19.9017]
[1720147195620,50.12,125.66,125.58,0.17]
[1720147195929,7.9568,125.68,125.6,27.8653]
[1720147196129,100.24,125.7,125.6,27.8653]
[1720147196311,6.1,125.71,125.63,19.8991]
[1720147196626,58.0765,125.69,125.62,7.9602]
[1720147196811,50.12,125.69,125.54,39.8249]
[1720147197003,7.9573,125.68,125.6,7.9617]
[1720147197213,50.12,125.65,125.54,39.8249]
[1720147197413,50.12,125.65,125.56,27.8737]
[1720147197615,7.96,125.63,125.56,19.91]
[1720147197823,58.0786,125.65,125.57,7.9636]
[1720147198124,58.0786,125.65,125.58,7.963]
[1720147198125,50.12,125.65,125.58,7.963]
[1720147198318,50.12,125.65,125.6,7.9617]
[1720147198519,50.12,125.65,125.6,19.9031]
[1720147198701,50.12,125.7,125.62,19.9]
[1720147199915,58.076,125.7,125.61,47.76]
[1720147200233,58.076,125.7,125.63,7.9598]
[1720147200444,7.9562,125.69,125.61,19.9018]
[1720147200610,100.24,125.7,125.61,19.9018]
[1720147201228,108.1955,125.7,125.62,7.9603]
[1720147201431,50.12,125.7,125.61,67.6618]
[1720147201813,50.12,125.7,125.64,7.959]
[1720147202010,50.12,125.7,125.63,19.8987]
[1720147202233,50.12,125.7,125.64,0.17]
[1720147202436,50.12,125.76,125.65,47.76]
[1720147202609,50.12,125.76,125.69,27.8449]
[1720147203021,50.12,125.76,125.66,0.17]
[1720147203507,50.12,125.76,125.66,7.9578]
[1720147203508,50.12,125.72,125.66,7.9578]
[1720147203711,50.12,125.72,125.67,7.9567]
[1720147203912,50.12,125.76,125.69,19.8897]
[1720147204136,58.072,125.76,125.69,19.8897]
[1720147204352,2.56,125.78,125.69,19.8897]
[1720147204547,2.56,125.78,125.73,7.9534]
[1720147204711,2.56,125.78,125.71,47.76]
[1720147205129,2.56,125.78,125.72,47.76]
[1720147205343,2.56,125.78,125.73,0.17]
[1720147205645,2.56,125.78,125.74,47.76]
[1720147205812,2.56,125.78,125.76,7.9513]
[1720147206008,2.56,125.78,125.75,7.9522]
[1720147206211,2.56,125.78,125.77,7.951]
[1720147206441,2.56,125.78,125.77,55.711]
[1720147206621,0.8253,125.81,125.8,7.9491]
[1720147206821,0.8253,125.81,125.8,55.8791]
[1720147207140,69.9711,125.94,125.84,7.9464]
[1720147207141,7.9421,125.92,125.84,7.9464]
[1720147207321,50.12,125.88,125.83,7.9466]
[1720147207520,50.12,125.88,125.84,19.8664]
[1720147208117,7.9411,125.93,125.85,7.9459]
[1720147208427,7.9411,125.93,125.84,19.8664]
[1720147208428,58.0603,125.94,125.86,7.9452]
[1720147208624,58.0603,125.94,125.89,7.9434]
[1720147208625,50.12,125.94,125.89,7.9434]
[1720147208834,50.12,125.94,125.9,19.8569]
[1720147209045,0.1,125.99,125.9,19.8569]
[1720147209214,0.1,125.99,125.9,67.6169]
[1720147209624,0.1,125.99,125.94,7.94]
[1720147209927,0.1,125.99,125.92,67.6124]
[1720147210142,0.1,125.99,125.92,75.5538]
[1720147210458,7.9383,125.98,125.88,19.8587]
[1720147210651,50.12,125.96,125.88,19.8587]
[1720147211557,58.059,125.96,125.88,27.8021]
[1720147211854,50.12,125.96,125.89,47.76]
[1720147212049,0.1,125.99,125.9,20.0255]
[1720147212228,0.1,125.99,125.88,39.7185]
[1720147212229,0.1,125.99,125.88,47.76]
[1720147212551,50.12,125.96,125.88,19.8587]
[1720147212855,7.9433,125.9,125.81,7.9484]
[1720147213052,7.9433,125.9,125.82,7.9476]
[1720147213226,58.0652,125.87,125.79,7.9496]
[1720147213428,50.12,125.87,125.79,47.76]
[1720147213628,50.12,125.87,125.76,6.4366]
[1720147213629,50.12,125.87,125.81,47.76]
[1720147214019,50.12,125.87,125.78,39.7508]
[1720147214224,7.9457,125.86,125.78,7.95]
[1720147214450,7.9465,125.85,125.76,82.0267]
[1720147214657,50.12,125.87,125.72,16.5968]
[1720147214658,50.12,125.82,125.72,36.4808]
[1720147214825,50.12,125.82,125.69,6.1894]
[1720147214826,50.12,125.82,125.74,19.8808]
[1720147215028,50.12,125.88,125.74,19.8808]
[1720147215029,50.12,125.83,125.77,7.9509]
[1720147215345,50.12,125.79,125.72,7.9537]
[1720147215543,7.9511,125.77,125.67,19.8918]
[1720147215854,50.12,125.79,125.72,7.9536]
[1720147216149,58.0697,125.79,125.71,7.9547]
[1720147216347,50.12,125.79,125.74,7.9528]
[1720147216529,50.12,125.79,125.73,27.8373]
[1720147216730,50.12,125.79,125.73,19.8838]
[1720147216940,50.12,125.79,125.7,19.8885]
[1720147217261,7.9516,125.76,125.66,35.2761]
[1720147217430,50.12,125.75,125.68,7.9563]
[1720147217749,50.12,125.75,125.69,7.9559]
[1720147218053,50.12,125.75,125.67,7.9568]
[1720147218252,7.9527,125.75,125.66,27.8514]
[1720147218425,50.12,125.72,125.66,27.8509]
[1720147218628,7.9555,125.7,125.63,19.8992]
[1720147218858,7.9549,125.71,125.63,27.8588]
[1720147219150,7.9555,125.7,125.63,19.8992]
[1720147219330,50.12,125.72,125.65,19.8951]
[1720147219536,50.12,125.72,125.69,7.9559]
[1720147219747,50.12,125.76,125.7,19.8885]
[1720147219932,27.8588,125.73,125.67,27.8501]
[1720147220136,50.12,125.76,125.67,27.8501]
[1720147220346,7.9534,125.74,125.67,19.8929]
[1720147220555,50.12,125.76,125.69,7.956]
[1720147220731,50.12,125.76,125.63,39.7987]
[1720147220941,7.9523,125.75,125.67,7.9572]
[1720147221150,50.12,125.72,125.65,19.8951]
[1720147221459,50.12,125.76,125.67,47.76]
[1720147221756,50.12,125.76,125.72,7.9539]
[1720147221958,50.12,125.78,125.69,47.76]
[1720147222138,50.12,125.78,125.73,19.8826]
[1720147222327,50.12,125.78,125.71,7.9547]
[1720147222520,58.0705,125.78,125.71,7.9547]
[1720147222766,50.12,125.78,125.71,7.9547]
[1720147222921,50.12,125.78,125.72,19.8842]
[1720147223127,50.12,125.78,125.72,67.6442]
[1720147223358,50.12,125.78,125.72,19.8842]
[1720147223724,50.12,125.82,125.77,7.9505]
[1720147223927,50.12,125.82,125.77,19.8764]
[1720147224145,50.12,125.82,125.75,7.9522]
[1720147224366,50.12,125.82,125.76,7.9513]
[1720147224534,104.6331,125.88,125.76,19.8775]
[1720147224741,7.9459,125.85,125.76,19.8775]
[1720147225063,100.24,125.88,125.76,67.7075]
[1720147225359,50.12,125.84,125.79,7.9494]
[1720147225561,19.8539,125.92,125.8,7.9485]
[1720147225766,19.8539,125.92,125.79,67.7043]
[1720147225767,50.12,125.87,125.79,27.8235]
[1720147225935,50.12,125.87,125.8,7.949]
[1720147226263,7.9453,125.86,125.79,27.8239]
[1720147226458,50.12,125.87,125.8,7.9489]
[1720147226631,50.12,125.87,125.79,19.8743]
[1720147226830,58.0647,125.87,125.79,27.8239]
[1720147227163,50.12,125.87,125.8,7.9487]
[1720147227460,50.12,125.87,125.79,20.0443]
[1720147227672,50.12,125.87,125.75,19.8791]
[1720147227869,7.9454,125.86,125.78,19.8755]
[1720147228156,7.9458,125.86,125.76,0.17]
[1720147228367,7.9458,125.86,125.75,0.17]
[1720147228661,50.12,125.87,125.77,19.8763]
[1720147228843,7.9453,125.86,125.78,0.17]
[1720147229049,58.0647,125.87,125.78,0.17]
[1720147229439,50.12,125.87,125.77,19.8763]
[1720147229636,50.12,125.83,125.76,7.9516]
[1720147229852,7.948,125.82,125.74,19.8817]
[1720147230060,50.12,125.83,125.72,7.9541]
[1720147230061,58.07,125.79,125.72,7.9541]
[1720147230356,50.12,125.79,125.72,7.954]
[1720147230568,50.12,125.79,125.73,7.953]
[1720147230734,50.12,125.79,125.74,7.9526]
[1720147231080,50.12,125.75,125.67,7.9572]
[1720147231271,50.12,125.75,125.65,7.9584]
[1720147231438,7.9536,125.73,125.65,7.9584]
[1720147231634,7.9536,125.73,125.66,7.9578]
[1720147231839,50.12,125.75,125.65,27.8541]
[1720147232142,7.9541,125.73,125.66,7.9576]
[1720147232650,50.12,125.75,125.67,19.8924]
[1720147232965,100.0,125.59,125.41,32.008079]
[1720147233152,50.12,125.64,125.48,19.923]
[1720147233347,50.12,125.58,125.51,8.0674]
[1720147233576,50.12,125.58,125.51,0.1]
[1720147234942,50.12,125.58,125.51,8.0672]
[1720147235659,100.24,125.58,125.51,0.1]
[1720147236257,50.12,125.58,125.51,0.1]
[1720147236643,100.24,125.58,125.51,0.1]
[1720147236972,108.2031,125.58,125.51,0.1]
[1720147237346,100.24,125.58,125.51,0.1]
[1720147237648,50.12,125.54,125.51,0.1]
[1720147238076,7.9664,125.53,125.51,0.1]
[1720147238368,7.9676,125.51,125.42,19.9317]
[1720147238570,50.12,125.5,125.42,19.9317]
[1720147239242,50.12,125.54,125.45,19.9271]
[1720147239458,50.12,125.54,125.46,7.9706]
[1720147239781,7.9675,125.51,125.42,7.9726]
[1720147239948,50.12,125.5,125.41,20.0333]
[1720147240147,7.9713,125.45,125.41,0.1]
[1720147240456,50.12,125.47,125.41,0.1]
[1720147240966,58.0902,125.47,125.41,0.1]
[1720147241280,7.9708,125.46,125.41,0.1]
[1720147241574,50.12,125.47,125.41,8.0737]
[1720147241744,7.9701,125.47,125.41,0.1]
[1720147241944,101.83465558,125.58,125.34,0.04727483]
[1720147241945,100.0,125.41,125.34,0.04727483]
[1720147242178,7.9795,125.32,125.31,0.1]
[1720147242367,19.9486,125.33,125.21,0.1]
[1720147242548,50.12,125.26,125.12,31.70456644]
[1720147242747,50.12,125.28,125.12,11.76406644]
[1720147242950,50.12,125.25,125.16,19.9738]
[1720147243162,7.9833,125.27,125.17,7.9891]
[1720147243373,50.12,125.26,125.15,19.9759]
[1720147243949,50.12,125.26,125.18,7.9881]
[1720147244285,50.12,125.26,125.11,0.1]
[1720147244568,50.12,125.26,125.19,7.9875]
[1720147244773,50.12,125.34,125.16,21.785]
[1720147244948,50.12,125.34,125.25,19.9593]
[1720147245146,50.12,125.34,125.21,19.9662]
[1720147245347,7.9804,125.31,125.21,19.9662]
[1720147245582,7.9794,125.33,125.21,19.9662]
[1720147245753,7.9794,125.33,125.22,7.9858]
[1720147245952,7.9796,125.32,125.23,7.9849]
[1720147246380,7.9802,125.31,125.23,7.9849]
[1720147246563,7.9793,125.33,125.23,7.9849]
[1720147246763,7.9796,125.32,125.24,45.0]
[1720147247355,100.24,125.34,125.24,45.0]
[1720147247581,100.24,125.34,125.21,19.9662]
[1720147247582,50.12,125.3,125.21,19.9662]
[1720147247878,50.12,125.3,125.21,27.9523]
[1720147248065,50.12,125.3,125.21,19.9662]
[1720147248271,7.9817,125.29,125.21,19.9662]
[1720147248477,50.12,125.3,125.17,19.9721]
[1720147248656,50.12,125.3,125.22,7.9858]
[1720147248858,58.101,125.3,125.2,19.9675]
[1720147249062,50.12,125.3,125.22,7.9857]
[1720147249282,58.1014,125.3,125.2,19.9675]
[1720147249568,7.979,125.33,125.25,7.984]
[1720147249780,82.112591,125.34,125.23,19.9627]
[1720147249781,50.12,125.34,125.23,19.9627]
[1720147250151,7.9796,125.32,125.23,19.9627]
[1720147250570,58.0987,125.34,125.26,7.9832]
[1720147250776,50.12,125.34,125.27,45.0]
[1720147250989,58.0983,125.34,125.27,45.0]
[1720147251150,50.12,125.34,125.27,45.0]
[1720147251352,7.9803,125.31,125.27,45.0]
[1720147251682,58.0987,125.34,125.25,7.9839]
[1720147251908,7.9792,125.33,125.24,19.9603]
[1720147252265,7.9798,125.32,125.24,27.9449]
[1720147252582,7.981,125.3,125.22,7.9858]
[1720147252765,7.9814,125.3,125.23,45.0]
[1720147252961,7.9794,125.33,125.24,7.9845]
[1720147253281,50.12,125.34,125.25,52.9839]
[1720147253464,50.12,125.34,125.25,45.0]
[1720147253871,7.9796,125.32,125.24,52.9844]
[1720147254266,7.9805,125.31,125.24,45.0]
[1720147254777,7.9805,125.31,125.24,52.4843]
[1720147254962,50.12,125.34,125.24,44.5]
[1720147255160,7.9801,125.32,125.24,52.4845]
[1720147255360,7.979,125.33,125.25,7.9838]
[1720147256172,7.9798,125.32,125.24,52.4845]
[1720147256374,7.9789,125.33,125.25,7.9837]
[1720147256690,19.9361,125.38,125.28,47.83]
[1720147256900,19.9361,125.38,125.35,7.9775]
[1720147257187,19.9361,125.38,125.34,19.9444]
[1720147257392,3.2695,125.38,125.36,19.9415]
[1720147257562,3.2695,125.38,125.33,0.17]
[1720147257765,3.2695,125.38,125.33,20.1166]
[1720147257961,3.2695,125.38,125.3,19.9517]
[1720147258181,3.2695,125.38,125.32,7.9793]
[1720147258377,3.2695,125.38,125.31,7.98]
[1720147258582,3.2695,125.38,125.3,19.9517]
[1720147258784,11.2453,125.38,125.3,19.9517]
[1720147259423,3.2695,125.38,125.3,19.9517]
[1720147259593,3.2695,125.38,125.29,0.17]
[1720147259892,3.2695,125.38,125.32,7.9793]
[1720147260271,3.2695,125.38,125.3,7.9803]
[1720147260272,11.2457,125.38,125.3,7.9803]
[1720147260493,11.2457,125.38,125.25,26.0433]
[1720147260494,3.2695,125.38,125.25,26.0433]
[1720147260800,7.9773,125.36,125.28,7.9817]
[1720147260984,7.9783,125.34,125.27,27.9386]
[1720147261175,7.9783,125.34,125.27,19.9559]
[1720147261378,7.977,125.36,125.29,7.9814]
[1720147261694,7.9771,125.36,125.29,7.9814]
[1720147261878,7.9764,125.37,125.3,7.9808]
[1720147262067,11.2452,125.38,125.31,7.9801]
[1720147262264,3.2695,125.38,125.32,8.1493]
[1720147262567,3.2695,125.38,125.33,19.9465]
[1720147262771,3.2695,125.38,125.34,0.17]
[1720147262968,3.2695,125.38,125.3,19.9513]
[1720147263171,7.9769,125.37,125.3,27.9319]
[1720147263596,11.2453,125.38,125.3,19.9513]
[1720147263794,3.2695,125.38,125.37,7.9763]
[1720147263997,0.1,125.49,125.39,7.9745]
[1720147264198,8.0692,125.49,125.41,7.9737]
[1720147264501,0.1,125.49,125.43,7.972]
[1720147264722,7.9746,125.4,125.33,7.9788]
[1720147264875,50.12,125.46,125.37,7.9757]
[1720147265073,7.9731,125.43,125.36,20.111]
[1720147265389,8.0737,125.49,125.37,0.17]
[1720147265588,8.0737,125.49,125.42,19.9315]
[1720147265989,0.1,125.49,125.44,7.9713]
[1720147266288,0.1,125.49,125.48,7.9693]
[1720147267078,0.1,125.49,125.48,8.1393]
[1720147267677,51.95465558,125.58,125.51,19.9178]
[1720147267678,1.83465558,125.58,125.51,19.9178]
[1720147268007,0.1,125.59,125.54,7.9654]
[1720147268178,0.1,125.59,125.55,0.17]
[1720147268377,20.0239,125.59,125.56,19.9106]
[1720147268584,0.1,125.69,125.58,47.83]
[1720147268816,0.1,125.69,125.6,87.6383]
[1720147268977,0.1,125.69,125.66,7.9579]
[1720147269172,0.1,125.69,125.65,19.8961]
[1720147269400,0.1,125.69,125.61,19.9017]
[1720147269782,0.1,125.69,125.62,0.17]
[1720147269981,7.9586,125.65,125.56,7.9641]
[1720147270204,170.111,125.69,125.55,19.9118]
[1720147270508,50.12,125.65,125.55,19.9118]
[1720147270682,50.12,125.65,125.51,54.4389]
[1720147270683,7.9575,125.67,125.59,7.9617]
[1720147270882,7.9574,125.67,125.59,7.9621]
[1720147271080,0.1,125.69,125.61,19.9024]
[1720147271304,0.1,125.69,125.67,7.9573]
[1720147271478,0.1,125.69,125.65,7.9581]
[1720147271681,0.1,125.69,125.62,7.9604]
[1720147271927,0.1,125.69,125.61,0.17]
[1720147272204,0.1,125.69,125.56,19.9105]
[1720147272377,50.12,125.68,125.56,19.9105]
[1720147272582,7.9586,125.65,125.56,27.8742]
[1720147272810,50.12,125.68,125.47,30.4346]
[1720147272977,50.12,125.68,125.56,7.9637]
[1720147273183,50.12,125.68,125.56,7.9642]
[1720147273389,0.17,125.67,125.55,27.8768]
[1720147273603,50.12,125.68,125.51,54.4389]
[1720147273910,0.1,125.69,125.6,19.9042]
[1720147274283,0.1,125.69,125.61,8.1305]
[1720147274487,0.1,125.69,125.53,47.83]
[1720147274790,0.1,125.69,125.54,47.83]
[1720147274993,0.1,125.69,125.54,87.656]
[1720147275196,0.1,125.69,125.62,27.8611]
[1720147275519,0.1,125.69,125.65,19.8965]
[1720147275681,0.1,125.69,125.67,7.9572]
[1720147276087,0.1,125.69,125.66,0.17]
[1720147276310,0.1,125.69,125.67,7.9567]
[1720147276478,0.1,125.69,125.68,7.9567]
[1720147276686,0.1,125.69,125.68,8.1267]
[1720147277405,0.1,125.69,125.68,0.17]
[1720147277710,0.1,125.69,125.68,7.9567]
[1720147277901,0.1,125.69,125.68,8.1267]
[1720147278106,0.1,125.79,125.73,7.9532]
[1720147278311,0.1,125.79,125.76,7.9514]
[1720147278511,0.1,125.79,125.75,19.8803]
[1720147278894,0.1,125.79,125.72,27.8391]
[1720147279085,0.1,125.79,125.71,19.8869]
[1720147279315,0.1,125.79,125.72,0.17]
[1720147279587,0.1,125.79,125.73,19.8827]
[1720147279797,0.1,125.79,125.72,7.9536]
[1720147280015,0.1,125.79,125.73,7.9534]
[1720147280211,0.1,125.79,125.69,27.8453]
[1720147280416,7.9511,125.77,125.7,7.9554]
[1720147280623,7.9524,125.75,125.69,19.8898]
[1720147280789,7.9531,125.74,125.66,19.8947]
[1720147281129,0.1,125.79,125.73,7.9534]
[1720147281295,0.1,125.79,125.67,19.8918]
[1720147281784,7.9563,125.69,125.55,270.3]
[1720147281985,50.12,125.73,125.65,7.9585]
[1720147282318,185.9847,125.77,125.63,7.9592]
[1720147282319,19.8818,125.75,125.63,7.9592]
[1720147282623,7.9574,125.67,125.6,7.9612]
[1720147282912,170.0049,125.73,125.61,7.961]
[1720147283217,7.9573,125.68,125.61,19.9022]
[1720147283512,7.9548,125.71,125.64,7.9591]
[1720147284012,7.9556,125.7,125.63,27.858]
[1720147284688,7.9567,125.68,125.61,7.9606]
[1720147284888,7.9573,125.67,125.6,7.9616]
[1720147285093,6.3775,125.74,125.58,47.83]
[1720147285306,6.3775,125.74,125.67,7.9567]
[1720147285512,74.0584,125.77,125.6,47.83]
[1720147285731,66.107,125.77,125.69,7.9558]
[1720147286014,0.1,125.79,125.7,7.9553]
[1720147286194,7.9544,125.72,125.64,19.8968]
[1720147286396,7.9581,125.66,125.59,7.9622]
[1720147286701,7.9572,125.68,125.61,7.9611]
[1720147286892,50.12,125.74,125.64,7.9592]
[1720147287097,19.8809,125.75,125.64,7.9592]
[1720147287293,7.954,125.73,125.65,7.9584]
[1720147287614,50.12,125.76,125.6,87.6358]
[1720147287810,50.12,125.76,125.6,102.6358]
[1720147288011,50.12,125.76,125.6,87.6358]
[1720147288216,70.0003,125.76,125.6,87.6358]
[1720147288412,7.9549,125.71,125.64,19.8974]
[1720147288727,7.9567,125.68,125.61,27.863]
[1720147288903,50.12,125.76,125.56,87.6487]
[1720147289100,100.0,125.75,125.62,7.9604]
[1720147289321,19.8865,125.72,125.6,19.9037]
[1720147289532,50.12,125.71,125.6,19.9037]
[1720147290407,50.12,125.71,125.57,27.8715]
[1720147290408,7.9594,125.64,125.57,27.8715]
[1720147290613,7.9571,125.68,125.59,19.9053]
[1720147290811,50.12,125.71,125.59,19.9053]
[1720147291209,70.0077,125.71,125.59,19.9053]
[1720147291422,7.9561,125.69,125.62,7.9604]
[1720147291938,7.9611,125.61,125.54,7.9654]
[1720147292135,7.9603,125.63,125.56,7.9639]
[1720147292805,50.12,125.67,125.57,19.9079]
[1720147293134,19.8903,125.69,125.59,7.9617]
[1720147293363,19.8944,125.67,125.55,7.9647]
[1720147293527,7.9601,125.63,125.56,7.9641]
[1720147293852,7.9593,125.64,125.57,7.9635]
[1720147294357,7.9593,125.64,125.52,53.9498]
[1720147294358,7.9585,125.66,125.58,19.9068]
[1720147295047,7.959,125.65,125.58,19.9068]
[1720147295520,7.959,125.65,125.54,39.8251]
[1720147295521,19.8924,125.68,125.56,7.9639]
[1720147295721,19.8909,125.69,125.55,19.912]
[1720147296029,7.9598,125.64,125.56,7.964]
[1720147296349,19.894,125.67,125.57,7.9633]
[1720147296661,19.894,125.67,125.55,19.912]
[1720147296662,19.8889,125.7,125.6,7.9616]
[1720147296969,19.8889,125.7,125.56,19.91]
[1720147297153,19.8923,125.68,125.56,19.91]
[1720147297355,0.17,125.69,125.56,19.91]
[1720147297651,19.8956,125.66,125.56,19.91]
[1720147297824,19.8956,125.66,125.53,19.9147]
[1720147298225,19.899,125.64,125.53,19.9147]
[1720147298443,7.9618,125.6,125.53,27.8804]
[1720147298645,19.899,125.64,125.55,7.9648]
[1720147298849,19.8943,125.67,125.56,7.9639]
[1720147299151,7.96,125.63,125.56,7.9639]
[1720147299350,19.8943,125.67,125.58,7.963]
[1720147299538,41.61785558,125.69,125.57,27.8719]
[1720147300260,1.83465558,125.69,125.56,0.17]
[1720147300427,1.83465558,125.69,125.66,7.9579]
[1720147300631,1.83465558,125.69,125.6,47.83]
[1720147300846,1.83465558,125.69,125.61,0.17]
[1720147301226,1.83465558,125.69,125.68,7.9567]
[1720147301723,1.83465558,125.69,125.63,19.8995]
[1720147301924,1.83465558,125.69,125.64,0.17]
[1720147302349,1.83465558,125.69,125.63,19.8995]
[1720147302724,1.83465558,125.69,125.6,19.9035]
[1720147303130,1.83465558,125.69,125.58,39.8147]
[1720147303324,100.0,125.72,125.58,47.83]
[1720147303524,7.9575,125.67,125.6,7.9613]
[1720147303726,7.9556,125.7,125.63,7.9598]
[1720147303926,1.83465558,125.72,125.55,39.8247]
[1720147304229,7.9594,125.64,125.57,27.8715]
[1720147304488,7.9588,125.65,125.58,7.9625]
[1720147304630,7.9594,125.64,125.57,27.8721]
[1720147304840,70.0124,125.68,125.49,5.35142558]
[1720147305057,7.9601,125.63,125.56,19.91]
[1720147305229,7.9601,125.63,125.56,27.8742]
[1720147305559,7.9601,125.63,125.57,7.9636]
[1720147305734,7.9593,125.64,125.57,7.9636]
[1720147306152,50.12,125.68,125.58,19.9069]
[1720147306350,7.9579,125.67,125.6,7.9616]
[1720147306540,50.12,125.68,125.58,19.9069]
[1720147307055,7.9579,125.66,125.6,7.9617]
[1720147307228,7.9579,125.66,125.59,7.9622]
[1720147307941,6.0763,125.69,125.58,47.83]
[1720147308145,19.8876,125.71,125.6,67.7335]
[1720147308352,7.9561,125.69,125.62,7.9599]
[1720147308843,7.9567,125.68,125.61,7.961]
[1720147309043,7.9568,125.68,125.61,7.961]
[1720147309544,7.9561,125.69,125.62,7.9602]
[1720147310043,7.9565,125.69,125.62,27.8607]
[1720147310266,7.9561,125.69,125.62,27.8607]
[1720147311242,19.8863,125.72,125.61,7.961]
[1720147311459,7.9623,125.6,125.56,47.83]
[1720147311667,50.12,125.65,125.47,21.46712002]
[1720147311872,50.12,125.65,125.47,22.284]
[1720147312052,7.961,125.62,125.55,7.9644]
[1720147312361,7.9612,125.61,125.54,7.9654]
[1720147312962,7.9604,125.63,125.55,19.9116]
[1720147313273,7.9612,125.61,125.52,67.7461]
[1720147313575,50.12,125.65,125.55,7.9647]
[1720147313576,7.9605,125.62,125.55,7.9647]
[1720147313747,7.9617,125.61,125.54,27.8784]
[1720147313952,7.9606,125.62,125.55,7.9648]
[1720147314457,7.9593,125.64,125.57,7.9636]
[1720147315852,50.12,125.65,125.56,19.9099]
[1720147316090,50.12,125.65,125.56,27.8742]
[1720147316269,7.9603,125.63,125.56,27.8742]